[Event "FIDE Women's Grand Swiss 2023"]
[Site "Villa Marina, Douglas, Isle of Man, Isle Of Man"]
[Date "2023.11.03"]
[Round "9.4"]
[White "Assaubayeva, Bibisara"]
[Black "Munguntuul, Batkhuyag"]
[Result "1/2-1/2"]
[TimeControl "40/90 + 30 + 30s/move"]
[WhiteFideId "13708694"]
[BlackFideId "4900758"]
[WhiteElo "2469"]
[BlackElo "2366"]

1. d4 {[%clk 01:30:55]} {[%emt 00:00:04]} d5 {[%clk 01:30:55]} {[%emt
00:00:05]} 2. c4 {[%clk 01:31:21]} {[%emt 00:00:04]} c6 {[%clk 01:31:19]}
{[%emt 00:00:06]} 3. Nf3 {[%clk 01:31:47]} {[%emt 00:00:05]} Nf6 {[%clk
01:31:42]} {[%emt 00:00:08]} 4. Nc3 {[%clk 01:32:11]} {[%emt 00:00:05]} e6
{[%clk 01:31:53]} {[%emt 00:00:19]} 5. e3 {[%clk 01:32:34]} {[%emt 00:00:07]}
Nbd7 {[%clk 01:32:17]} {[%emt 00:00:06]} 6. Bd3 {[%clk 01:32:57]} {[%emt
00:00:07]} dxc4 {[%clk 01:32:29]} {[%emt 00:00:18]} 7. Bxc4 {[%clk 01:33:22]}
{[%emt 00:00:05]} b5 {[%clk 01:32:54]} {[%emt 00:00:05]} 8. Bd3 {[%clk
01:33:48]} {[%emt 00:00:04]} Bb7 {[%clk 01:33:18]} {[%emt 00:00:05]} 9. O-O
{[%clk 01:33:54]} {[%emt 00:00:23]} a6 {[%clk 01:33:36]} {[%emt 00:00:13]} 10.
e4 {[%clk 01:34:11]} {[%emt 00:00:13]} c5 {[%clk 01:33:31]} {[%emt 00:00:34]}
11. d5 {[%clk 01:34:33]} {[%emt 00:00:09]} Qc7 {[%clk 01:33:47]} {[%emt
00:00:13]} 12. Qe2 {[%clk 01:34:52]} {[%emt 00:00:12]} Bd6 {[%clk 01:27:31]}
{[%emt 00:06:46]} 13. Re1 {[%clk 01:21:29]} {[%emt 00:13:53]} Ne5 {[%clk
01:23:20]} {[%emt 00:04:40]} 14. Nxe5 {[%clk 01:07:57]} {[%emt 00:14:03]} Bxe5
{[%clk 01:20:57]} {[%emt 00:02:53]} 15. f4 {[%clk 01:01:53]} {[%emt 00:06:34]}
Bd4+ {[%clk 00:52:51]} {[%emt 00:28:36]} 16. Kh1 {[%clk 01:01:29]} {[%emt
00:00:55]} h5 {[%clk 00:50:41]} {[%emt 00:02:39]} 17. dxe6 {[%clk 00:50:41]}
{[%emt 00:11:19]} fxe6 {[%clk 00:48:29]} {[%emt 00:02:42]} 18. e5 {[%clk
00:46:38]} {[%emt 00:04:34]} Ng4 {[%clk 00:47:35]} {[%emt 00:01:23]} 19. Bg6+
{[%clk 00:45:03]} {[%emt 00:02:05]} Kd8 {[%clk 00:41:36]} {[%emt 00:06:30]} 20.
Rd1 {[%clk 00:32:23]} {[%emt 00:13:10]} Kc8 {[%clk 00:35:05]} {[%emt 00:07:00]}
21. Rxd4 {[%clk 00:31:05]} {[%emt 00:01:48]} cxd4 {[%clk 00:35:31]} {[%emt
00:00:04]} 22. Ne4 {[%clk 00:29:56]} {[%emt 00:01:39]} Kb8 {[%clk 00:24:18]}
{[%emt 00:11:43]} 23. Nd6 {[%clk 00:27:10]} {[%emt 00:03:16]} Bd5 {[%clk
00:23:31]} {[%emt 00:01:17]} 24. h3 {[%clk 00:21:08]} {[%emt 00:06:31]} d3
{[%clk 00:18:36]} {[%emt 00:05:25]} 25. Bxd3 {[%clk 00:20:25]} {[%emt
00:01:13]} Qc5 {[%clk 00:13:33]} {[%emt 00:05:34]} 26. Bc2 {[%clk 00:17:53]}
{[%emt 00:03:02]} Ra7 {[%clk 00:13:35]} {[%emt 00:00:28]} 27. Bb3 {[%clk
00:15:40]} {[%emt 00:02:43]} Rc7 {[%clk 00:11:02]} {[%emt 00:03:03]} 28. Bd2
{[%clk 00:15:19]} {[%emt 00:00:51]} g6 {[%clk 00:01:52]} {[%emt 00:09:39]} 29.
Ba5 {[%clk 00:10:23]} {[%emt 00:05:26]} Rc6 {[%clk 00:01:57]} {[%emt 00:00:25]}
30. Bxd5 {[%clk 00:09:26]} {[%emt 00:01:27]} Qxd5 {[%clk 00:01:37]} {[%emt
00:00:51]} 31. a4 {[%clk 00:07:52]} {[%emt 00:02:05]} bxa4 {[%clk 00:00:48]}
{[%emt 00:01:18]} 32. Bc3 {[%clk 00:07:44]} {[%emt 00:00:38]} Qc5 {[%clk
00:00:37]} {[%emt 00:00:42]} 33. Rxa4 {[%clk 00:04:49]} {[%emt 00:03:25]} Qf2
{[%clk 00:00:53]} {[%emt 00:00:13]} 34. Qxf2 {[%clk 00:04:03]} {[%emt
00:01:17]} Nxf2+ {[%clk 00:01:21]} {[%emt 00:00:02]} 35. Kh2 {[%clk 00:04:22]}
{[%emt 00:00:10]} Nd3 {[%clk 00:00:52]} {[%emt 00:00:59]} 36. Rd4 {[%clk
00:03:18]} {[%emt 00:01:34]} Nc1 {[%clk 00:00:51]} {[%emt 00:00:32]} 37. Rb4+
{[%clk 00:02:29]} {[%emt 00:01:20]} Ka8 {[%clk 00:01:13]} {[%emt 00:00:07]} 38.
Rb7 {[%clk 00:01:55]} {[%emt 00:01:04]} Ne2 {[%clk 00:01:10]} {[%emt 00:00:33]}
39. Re7 {[%clk 00:02:08]} {[%emt 00:00:16]} Nxc3 {[%clk 00:01:05]} {[%emt
00:00:35]} 40. bxc3 {[%clk 00:02:37]} {[%emt 00:00:02]} Rxc3 {[%clk 00:01:20]}
{[%emt 00:00:15]} 41. Rxe6 {[%clk 00:02:53]} {[%emt 00:00:13]} Rg8 {[%clk
00:26:38]} {[%emt 00:05:12]} 42. Ne4 {[%clk 00:28:24]} {[%emt 00:05:00]} Rc4
{[%clk 00:24:47]} {[%emt 00:02:20]} 43. Rxa6+ {[%clk 00:27:51]} {[%emt
00:01:04]} Kb7 {[%clk 00:25:12]} {[%emt 00:00:04]} 44. Nd6+ {[%clk 00:28:04]}
{[%emt 00:00:17]} Kxa6 {[%clk 00:25:40]} {[%emt 00:00:02]} 45. Nxc4 {[%clk
00:28:27]} {[%emt 00:00:07]} Kb5 {[%clk 00:26:02]} {[%emt 00:00:09]} 46. Nd6+
{[%clk 00:26:18]} {[%emt 00:02:39]} Kc6 {[%clk 00:22:38]} {[%emt 00:03:53]} 47.
Ne4 {[%clk 00:25:32]} {[%emt 00:01:16]} Rb8 {[%clk 00:22:19]} {[%emt 00:00:49]}
48. Nf6 {[%clk 00:22:40]} {[%emt 00:03:22]} Rb3 {[%clk 00:21:54]} {[%emt
00:00:55]} 49. h4 {[%clk 00:16:30]} {[%emt 00:06:40]} 1/2-1/2

[Event "FIDE Women's Grand Swiss 2023"]
[Site "Villa Marina, Douglas, Isle of Man, Isle Of Man"]
[Date "2023.11.03"]
[Round "9.5"]
[White "Goryachkina, Aleksandra"]
[Black "Narva, Mai"]
[Result "0-1"]
[TimeControl "40/90 + 30 + 30s/move"]
[WhiteFideId "4147103"]
[BlackFideId "4500512"]
[WhiteElo "2558"]
[BlackElo "2399"]

1. d4 {[%clk 01:30:54]} {[%emt 00:00:06]} Nf6 {[%clk 01:30:46]} {[%emt
00:00:13]} 2. c4 {[%clk 01:31:17]} {[%emt 00:00:08]} e6 {[%clk 01:31:00]}
{[%emt 00:00:16]} 3. Nc3 {[%clk 01:31:34]} {[%emt 00:00:12]} d5 {[%clk
01:31:08]} {[%emt 00:00:22]} 4. Nf3 {[%clk 01:31:43]} {[%emt 00:00:21]} Nbd7
{[%clk 01:31:11]} {[%emt 00:00:26]} 5. Bf4 {[%clk 01:31:32]} {[%emt 00:00:41]}
dxc4 {[%clk 01:30:17]} {[%emt 00:01:25]} 6. e3 {[%clk 01:31:44]} {[%emt
00:00:18]} b5 {[%clk 01:30:08]} {[%emt 00:00:39]} 7. Nxb5 {[%clk 01:31:49]}
{[%emt 00:00:26]} Bb4+ {[%clk 01:30:20]} {[%emt 00:00:17]} 8. Nc3 {[%clk
01:31:33]} {[%emt 00:00:46]} Nd5 {[%clk 01:30:14]} {[%emt 00:00:36]} 9. a3
{[%clk 01:30:50]} {[%emt 00:01:13]} Bxc3+ {[%clk 01:30:13]} {[%emt 00:00:31]}
10. bxc3 {[%clk 01:31:08]} {[%emt 00:00:12]} Nxf4 {[%clk 01:29:26]} {[%emt
00:01:17]} 11. exf4 {[%clk 01:31:25]} {[%emt 00:00:13]} Bb7 {[%clk 01:16:09]}
{[%emt 00:13:46]} 12. Bxc4 {[%clk 01:27:53]} {[%emt 00:04:03]} O-O {[%clk
01:11:37]} {[%emt 00:05:01]} 13. Bd3 {[%clk 01:19:04]} {[%emt 00:09:20]} Rb8
{[%clk 01:03:01]} {[%emt 00:09:06]} 14. O-O {[%clk 01:16:32]} {[%emt 00:03:02]}
c5 {[%clk 00:55:04]} {[%emt 00:08:27]} 15. Re1 {[%clk 01:08:38]} {[%emt
00:08:24]} cxd4 {[%clk 00:47:23]} {[%emt 00:08:10]} 16. Nxd4 {[%clk 01:03:25]}
{[%emt 00:05:44]} Nf6 {[%clk 00:43:02]} {[%emt 00:04:51]} 17. Qd2 {[%clk
01:00:54]} {[%emt 00:03:01]} Qc7 {[%clk 00:39:14]} {[%emt 00:04:18]} 18. Rac1
{[%clk 00:54:12]} {[%emt 00:07:13]} Rfd8 {[%clk 00:37:19]} {[%emt 00:02:24]} 19.
Qe3 {[%clk 00:43:13]} {[%emt 00:11:30]} Qd6 {[%clk 00:28:37]} {[%emt 00:09:12]}
20. Qe5 {[%clk 00:35:47]} {[%emt 00:07:56]} Qxa3 {[%clk 00:19:36]} {[%emt
00:09:30]} 21. f5 {[%clk 00:35:32]} {[%emt 00:00:46]} Nd7 {[%clk 00:15:14]}
{[%emt 00:04:51]} 22. Qg3 {[%clk 00:35:06]} {[%emt 00:00:56]} e5 {[%clk
00:14:24]} {[%emt 00:01:20]} 23. f6 {[%clk 00:34:24]} {[%emt 00:01:12]} Nxf6
{[%clk 00:13:12]} {[%emt 00:01:42]} 24. Nf5 {[%clk 00:28:20]} {[%emt 00:06:35]}
g6 {[%clk 00:10:58]} {[%emt 00:02:44]} 25. Bc2 {[%clk 00:17:29]} {[%emt
00:11:21]} Re8 {[%clk 00:05:05]} {[%emt 00:06:23]} 26. Qg5 {[%clk 00:14:04]}
{[%emt 00:03:55]} Nh5 {[%clk 00:04:51]} {[%emt 00:00:44]} 27. Rb1 {[%clk
00:09:11]} {[%emt 00:05:23]} f6 {[%clk 00:01:42]} {[%emt 00:03:39]} 28. Qg4
{[%clk 00:07:47]} {[%emt 00:01:55]} Nf4 {[%clk 00:01:08]} {[%emt 00:01:03]} 29.
Ne3 {[%clk 00:05:10]} {[%emt 00:03:07]} Bc6 {[%clk 00:00:43]} {[%emt 00:00:55]}
30. h4 {[%clk 00:03:39]} {[%emt 00:02:01]} h5 {[%clk 00:00:44]} {[%emt
00:00:28]} 31. Qd1 {[%clk 00:03:43]} {[%emt 00:00:26]} Rbd8 {[%clk 00:00:47]}
{[%emt 00:00:28]} 32. Bb3+ {[%clk 00:03:57]} {[%emt 00:00:16]} Kg7 {[%clk
00:01:07]} {[%emt 00:00:09]} 33. Qc2 {[%clk 00:04:23]} {[%emt 00:00:05]} Qc5
{[%clk 00:01:08]} {[%emt 00:00:29]} 34. Ba4 {[%clk 00:04:07]} {[%emt 00:00:46]}
Re7 {[%clk 00:01:19]} {[%emt 00:00:18]} 35. Bxc6 {[%clk 00:02:27]} {[%emt
00:02:11]} Qxc6 {[%clk 00:01:44]} {[%emt 00:00:05]} 36. g3 {[%clk 00:02:16]}
{[%emt 00:00:41]} Nd3 {[%clk 00:01:43]} {[%emt 00:00:31]} 37. Red1 {[%clk
00:02:30]} {[%emt 00:00:16]} Red7 {[%clk 00:01:48]} {[%emt 00:00:24]} 38. c4
{[%clk 00:02:25]} {[%emt 00:00:35]} Rd4 {[%clk 00:01:40]} {[%emt 00:00:38]} 39.
Qa2 {[%clk 00:01:52]} {[%emt 00:01:04]} R8d7 {[%clk 00:01:21]} {[%emt
00:00:48]} 40. Qa3 {[%clk 00:01:10]} {[%emt 00:01:12]} Qd6 {[%clk 00:00:51]}
{[%emt 00:00:59]} 41. Ra1 {[%clk 00:27:01]} {[%emt 00:04:39]} Qc6 {[%clk
00:16:38]} {[%emt 00:14:43]} 42. Rab1 {[%clk 00:13:50]} {[%emt 00:13:41]} Qf3
{[%clk 00:16:03]} {[%emt 00:01:04]} 43. Rd2 {[%clk 00:11:37]} {[%emt 00:02:44]}
Nxf2 {[%clk 00:11:40]} {[%emt 00:04:53]} 44. Rxf2 {[%clk 00:10:21]} {[%emt
00:01:46]} Rd1+ {[%clk 00:10:06]} {[%emt 00:02:04]} 45. Nxd1 {[%clk 00:08:15]}
{[%emt 00:02:36]} Qxa3 {[%clk 00:10:28]} {[%emt 00:00:08]} 46. Kh2 {[%clk
00:08:31]} {[%emt 00:00:14]} e4 {[%clk 00:09:41]} {[%emt 00:01:17]} 47. Rfb2
{[%clk 00:06:00]} {[%emt 00:03:00]} e3 {[%clk 00:09:30]} {[%emt 00:00:41]} 48.
c5 {[%clk 00:04:18]} {[%emt 00:02:13]} Qxc5 {[%clk 00:09:28]} {[%emt 00:00:32]}
49. Re2 {[%clk 00:04:38]} {[%emt 00:00:10]} Qc4 {[%clk 00:09:20]} {[%emt
00:00:39]} 0-1

[Event "FIDE Women's Grand Swiss 2023"]
[Site "Villa Marina, Douglas, Isle of Man, Isle Of Man"]
[Date "2023.11.03"]
[Round "9.6"]
[White "Cori T., Deysi"]
[Black "Efroimski, Marsel"]
[Result "1-0"]
[TimeControl "40/90 + 30 + 30s/move"]
[WhiteFideId "3801934"]
[BlackFideId "2810964"]
[WhiteElo "2367"]
[BlackElo "2447"]

1. Nf3 {[%clk 01:30:29]} {[%emt 00:00:30]} d5 {[%clk 01:30:56]} {[%emt
00:00:05]} 2. g3 {[%clk 01:30:31]} {[%emt 00:00:28]} Nf6 {[%clk 01:31:14]}
{[%emt 00:00:11]} 3. Bg2 {[%clk 01:30:24]} {[%emt 00:00:37]} c5 {[%clk
01:30:31]} {[%emt 00:01:13]} 4. O-O {[%clk 01:30:19]} {[%emt 00:00:35]} e6
{[%clk 01:30:58]} {[%emt 00:00:03]} 5. d4 {[%clk 01:28:52]} {[%emt 00:01:57]}
cxd4 {[%clk 01:31:24]} {[%emt 00:00:05]} 6. Nxd4 {[%clk 01:29:18]} {[%emt
00:00:04]} e5 {[%clk 01:31:50]} {[%emt 00:00:04]} 7. Nb3 {[%clk 01:29:00]}
{[%emt 00:00:49]} Be6 {[%clk 01:32:07]} {[%emt 00:00:13]} 8. Nc3 {[%clk
01:21:19]} {[%emt 00:08:11]} Be7 {[%clk 01:19:11]} {[%emt 00:13:26]} 9. f4
{[%clk 01:15:11]} {[%emt 00:06:37]} e4 {[%clk 01:15:27]} {[%emt 00:04:14]} 10.
f5 {[%clk 01:09:08]} {[%emt 00:06:33]} Bc8 {[%clk 01:15:45]} {[%emt 00:00:12]}
11. Bg5 {[%clk 01:07:09]} {[%emt 00:02:29]} Nbd7 {[%clk 01:16:09]} {[%emt
00:00:06]} 12. Qd4 {[%clk 01:06:11]} {[%emt 00:01:28]} Nb6 {[%clk 00:56:06]}
{[%emt 00:20:33]} 13. Rad1 {[%clk 01:01:52]} {[%emt 00:04:49]} O-O {[%clk
00:50:59]} {[%emt 00:05:38]} 14. Bxf6 {[%clk 00:54:03]} {[%emt 00:08:19]} Bxf6
{[%clk 00:51:23]} {[%emt 00:00:06]} 15. Qc5 {[%clk 00:54:27]} {[%emt 00:00:07]}
Be7 {[%clk 00:43:18]} {[%emt 00:08:35]} 16. Qa5 {[%clk 00:48:57]} {[%emt
00:05:59]} Qc7 {[%clk 00:31:03]} {[%emt 00:12:46]} 17. Nxd5 {[%clk 00:46:33]}
{[%emt 00:02:54]} Nxd5 {[%clk 00:31:27]} {[%emt 00:00:06]} 18. Qxd5 {[%clk
00:46:54]} {[%emt 00:00:09]} Qxc2 {[%clk 00:31:39]} {[%emt 00:00:18]} 19. Qxe4
{[%clk 00:34:54]} {[%emt 00:12:30]} Qc7 {[%clk 00:27:43]} {[%emt 00:04:27]} 20.
Kh1 {[%clk 00:26:50]} {[%emt 00:08:33]} Bf6 {[%clk 00:27:49]} {[%emt 00:00:24]}
21. Rd2 {[%clk 00:26:23]} {[%emt 00:00:58]} a5 {[%clk 00:27:01]} {[%emt
00:01:17]} 22. Nd4 {[%clk 00:25:11]} {[%emt 00:01:41]} a4 {[%clk 00:24:15]}
{[%emt 00:03:17]} 23. Nb5 {[%clk 00:20:00]} {[%emt 00:05:41]} Qb6 {[%clk
00:22:52]} {[%emt 00:01:54]} 24. Nd6 {[%clk 00:18:10]} {[%emt 00:02:19]} Bg5
{[%clk 00:21:38]} {[%emt 00:01:44]} 25. Nc4 {[%clk 00:12:55]} {[%emt 00:05:45]}
Qc7 {[%clk 00:19:51]} {[%emt 00:02:17]} 26. Rc2 {[%clk 00:11:41]} {[%emt
00:01:45]} Ra6 {[%clk 00:18:22]} {[%emt 00:01:59]} 27. Ne3 {[%clk 00:12:09]}
{[%emt 00:00:01]} Qd8 {[%clk 00:16:52]} {[%emt 00:02:00]} 28. Nd5 {[%clk
00:11:56]} {[%emt 00:00:44]} Bd7 {[%clk 00:15:03]} {[%emt 00:02:19]} 29. h4
{[%clk 00:10:03]} {[%emt 00:02:22]} Rh6 {[%clk 00:11:59]} {[%emt 00:03:33]} 30.
Kg1 {[%clk 00:09:24]} {[%emt 00:01:10]} Bf6 {[%clk 00:12:15]} {[%emt 00:00:15]}
31. Qf4 {[%clk 00:05:57]} {[%emt 00:03:57]} Bc6 {[%clk 00:08:14]} {[%emt
00:04:31]} 32. Nxf6+ {[%clk 00:05:00]} {[%emt 00:01:27]} Rxf6 {[%clk 00:08:16]}
{[%emt 00:00:28]} 33. e4 {[%clk 00:04:23]} {[%emt 00:01:08]} Rd6 {[%clk
00:06:38]} {[%emt 00:02:08]} 34. Rff2 {[%clk 00:03:35]} {[%emt 00:01:18]} f6
{[%clk 00:06:17]} {[%emt 00:00:51]} 35. Rfd2 {[%clk 00:00:43]} {[%emt
00:03:22]} Rxd2 {[%clk 00:05:56]} {[%emt 00:00:52]} 36. Rxd2 {[%clk 00:01:12]}
Qb6+ {[%clk 00:06:04]} {[%emt 00:00:21]} 37. Qf2 {[%clk 00:00:59]} {[%emt
00:00:43]} Qc7 {[%clk 00:05:42]} {[%emt 00:00:53]} 38. Qf4 {[%clk 00:01:02]}
{[%emt 00:00:27]} Qb6+ {[%clk 00:06:07]} {[%emt 00:00:04]} 39. Qf2 {[%clk
00:01:27]} {[%emt 00:00:06]} Qc7 {[%clk 00:06:18]} {[%emt 00:00:19]} 40. Kh2
{[%clk 00:00:33]} {[%emt 00:01:24]} Rd8 {[%clk 00:05:49]} {[%emt 00:00:58]} 41.
Qf4 {[%clk 00:22:03]} {[%emt 00:08:59]} Qe7 {[%clk 00:35:31]} {[%emt 00:00:48]}
42. Bf3 {[%clk 00:21:29]} {[%emt 00:01:05]} Rxd2+ {[%clk 00:33:46]} {[%emt
00:02:15]} 43. Qxd2 {[%clk 00:21:57]} {[%emt 00:00:02]} g6 {[%clk 00:31:35]}
{[%emt 00:02:41]} 44. fxg6 {[%clk 00:14:40]} {[%emt 00:07:47]} hxg6 {[%clk
00:32:02]} {[%emt 00:00:03]} 45. Qc3 {[%clk 00:12:16]} {[%emt 00:02:54]} Kg7
{[%clk 00:27:54]} {[%emt 00:04:38]} 46. Qd4 {[%clk 00:11:20]} {[%emt 00:01:25]}
Qe6 {[%clk 00:28:12]} {[%emt 00:00:13]} 47. a3 {[%clk 00:11:34]} {[%emt
00:00:16]} Kf7 {[%clk 00:25:24]} {[%emt 00:03:17]} 48. g4 {[%clk 00:11:05]}
{[%emt 00:00:59]} Qe7 {[%clk 00:24:05]} {[%emt 00:01:50]} 49. Kg2 {[%clk
00:09:37]} {[%emt 00:01:58]} Qe6 {[%clk 00:21:37]} {[%emt 00:02:59]} 50. Kf2
{[%clk 00:08:07]} {[%emt 00:01:59]} Qb3 {[%clk 00:18:24]} {[%emt 00:03:43]} 51.
g5 {[%clk 00:06:19]} {[%emt 00:02:18]} fxg5 {[%clk 00:18:23]} {[%emt 00:00:31]}
52. hxg5 {[%clk 00:06:48]} Qe6 {[%clk 00:18:36]} {[%emt 00:00:17]} 53. Kg3
{[%clk 00:06:23]} {[%emt 00:00:56]} Ke7 {[%clk 00:17:10]} {[%emt 00:01:56]} 54.
Qg7+ {[%clk 00:06:12]} {[%emt 00:00:39]} Kd6 {[%clk 00:16:29]} {[%emt
00:01:12]} 55. Qf6 {[%clk 00:06:05]} {[%emt 00:00:37]} Qxf6 {[%clk 00:16:01]}
{[%emt 00:00:58]} 56. gxf6 {[%clk 00:06:34]} {[%emt 00:00:01]} Ke6 {[%clk
00:15:26]} {[%emt 00:01:05]} 57. e5 {[%clk 00:06:35]} {[%emt 00:00:29]} Be8
{[%clk 00:12:03]} {[%emt 00:03:53]} 58. Kf4 {[%clk 00:07:00]} {[%emt 00:00:05]}
g5+ {[%clk 00:12:17]} {[%emt 00:00:16]} 59. Kxg5 {[%clk 00:07:26]} {[%emt
00:00:04]} Kxe5 {[%clk 00:12:44]} {[%emt 00:00:04]} 60. Bxb7 {[%clk 00:07:52]}
{[%emt 00:00:04]} Kd4 {[%clk 00:12:10]} {[%emt 00:01:04]} 61. Bc6 {[%clk
00:08:05]} {[%emt 00:00:17]} 1-0

[Event "FIDE Women's Grand Swiss 2023"]
[Site "Villa Marina, Douglas, Isle of Man, Isle Of Man"]
[Date "2023.11.03"]
[Round "9.7"]
[White "Tsolakidou, Stavroula"]
[Black "Ushenina, Anna"]
[Result "1/2-1/2"]
[TimeControl "40/90 + 30 + 30s/move"]
[WhiteFideId "4264312"]
[BlackFideId "14110911"]
[WhiteElo "2385"]
[BlackElo "2434"]

1. c4 {[%clk 01:30:57]} {[%emt 00:00:03]} e6 {[%clk 01:30:26]} {[%emt
00:00:35]} 2. g3 {[%clk 01:31:10]} {[%emt 00:00:17]} d5 {[%clk 01:30:09]}
{[%emt 00:00:47]} 3. Bg2 {[%clk 01:31:24]} {[%emt 00:00:15]} d4 {[%clk
01:29:10]} {[%emt 00:01:29]} 4. Nf3 {[%clk 01:30:14]} {[%emt 00:01:39]} Nf6
{[%clk 01:29:26]} {[%emt 00:00:15]} 5. O-O {[%clk 01:27:19]} {[%emt 00:03:25]}
c5 {[%clk 01:29:31]} {[%emt 00:00:25]} 6. e3 {[%clk 01:25:59]} {[%emt
00:01:50]} Nc6 {[%clk 01:29:31]} {[%emt 00:00:31]} 7. exd4 {[%clk 01:26:05]}
{[%emt 00:00:24]} cxd4 {[%clk 01:29:57]} {[%emt 00:00:05]} 8. d3 {[%clk
01:26:25]} {[%emt 00:00:10]} Bd6 {[%clk 01:29:46]} {[%emt 00:00:41]} 9. Bg5
{[%clk 01:25:38]} {[%emt 00:01:17]} h6 {[%clk 01:29:27]} {[%emt 00:00:50]} 10.
Bxf6 {[%clk 01:26:00]} {[%emt 00:00:07]} Qxf6 {[%clk 01:29:54]} {[%emt
00:00:03]} 11. Nbd2 {[%clk 01:26:14]} {[%emt 00:00:17]} Qe7 {[%clk 01:27:07]}
{[%emt 00:03:18]} 12. a3 {[%clk 01:15:52]} {[%emt 00:10:51]} a5 {[%clk
01:25:28]} {[%emt 00:02:09]} 13. Ne4 {[%clk 01:10:14]} {[%emt 00:06:09]} Bc7
{[%clk 01:20:58]} {[%emt 00:04:59]} 14. c5 {[%clk 01:06:25]} {[%emt 00:04:19]}
O-O {[%clk 01:11:26]} {[%emt 00:10:02]} 15. Nfd2 {[%clk 01:06:14]} {[%emt
00:00:41]} f5 {[%clk 00:34:58]} {[%emt 00:36:58]} 16. Nd6 {[%clk 01:06:36]}
{[%emt 00:00:08]} Bxd6 {[%clk 00:35:23]} {[%emt 00:00:06]} 17. cxd6 {[%clk
01:07:00]} {[%emt 00:00:05]} Qxd6 {[%clk 00:35:50]} {[%emt 00:00:03]} 18. Nc4
{[%clk 01:07:24]} {[%emt 00:00:06]} Qe7 {[%clk 00:31:20]} {[%emt 00:05:01]} 19.
Re1 {[%clk 01:05:48]} {[%emt 00:02:05]} Ra6 {[%clk 00:28:46]} {[%emt 00:03:04]}
20. Rc1 {[%clk 01:00:23]} {[%emt 00:05:55]} Bd7 {[%clk 00:23:11]} {[%emt
00:06:05]} 21. Qd2 {[%clk 00:42:24]} {[%emt 00:18:28]} b5 {[%clk 00:14:00]}
{[%emt 00:09:41]} 22. Ne5 {[%clk 00:34:03]} {[%emt 00:08:52]} Nxe5 {[%clk
00:14:25]} {[%emt 00:00:05]} 23. Rxe5 {[%clk 00:34:29]} {[%emt 00:00:03]} Qd6
{[%clk 00:14:47]} {[%emt 00:00:08]} 24. Rec5 {[%clk 00:33:54]} {[%emt
00:01:05]} Rb8 {[%clk 00:14:30]} {[%emt 00:00:48]} 25. b4 {[%clk 00:28:18]}
{[%emt 00:06:06]} axb4 {[%clk 00:14:38]} {[%emt 00:00:22]} 26. Qxb4 {[%clk
00:28:42]} {[%emt 00:00:05]} Kh7 {[%clk 00:12:34]} {[%emt 00:02:35]} 27. Rc7
{[%clk 00:28:09]} {[%emt 00:01:03]} Rbb6 {[%clk 00:12:12]} {[%emt 00:00:51]} 28.
Qxd6 {[%clk 00:10:46]} {[%emt 00:17:53]} Rxd6 {[%clk 00:12:39]} {[%emt
00:00:03]} 29. Rb7 {[%clk 00:11:11]} {[%emt 00:00:05]} Bc6 {[%clk 00:08:04]}
{[%emt 00:05:06]} 30. Bxc6 {[%clk 00:10:50]} {[%emt 00:00:50]} Rdxc6 {[%clk
00:08:29]} {[%emt 00:00:05]} 31. Rxc6 {[%clk 00:10:27]} {[%emt 00:00:53]} Rxc6
{[%clk 00:08:57]} {[%emt 00:00:02]} 32. Rxb5 {[%clk 00:10:51]} {[%emt
00:00:06]} Rc3 {[%clk 00:09:22]} {[%emt 00:00:06]} 33. Re5 {[%clk 00:10:23]}
{[%emt 00:00:57]} Rxa3 {[%clk 00:09:24]} {[%emt 00:00:28]} 34. Rxe6 {[%clk
00:10:48]} {[%emt 00:00:04]} Rxd3 {[%clk 00:09:52]} {[%emt 00:00:03]} 35. Rd6
{[%clk 00:10:27]} {[%emt 00:00:51]} Rd1+ {[%clk 00:06:06]} {[%emt 00:04:17]} 36.
Kg2 {[%clk 00:10:53]} {[%emt 00:00:03]} h5 {[%clk 00:03:51]} {[%emt 00:02:45]}
37. Kf3 {[%clk 00:10:22]} {[%emt 00:01:01]} Rd2 {[%clk 00:03:20]} {[%emt
00:01:02]} 38. h4 {[%clk 00:09:45]} {[%emt 00:01:06]} g6 {[%clk 00:03:32]}
{[%emt 00:00:18]} 39. Kg2 {[%clk 00:09:43]} {[%emt 00:00:32]} Kg7 {[%clk
00:02:31]} {[%emt 00:01:31]} 40. Kf1 {[%clk 00:10:04]} {[%emt 00:00:08]} f4
{[%clk 00:01:06]} {[%emt 00:01:56]} 41. gxf4 {[%clk 00:08:44]} {[%emt
00:01:50]} d3 {[%clk 00:29:51]} {[%emt 00:01:44]} 42. Ke1 {[%clk 00:31:47]}
{[%emt 00:07:27]} Re2+ {[%clk 00:29:55]} {[%emt 00:00:28]} 43. Kf1 {[%clk
00:32:13]} {[%emt 00:00:03]} Re4 {[%clk 00:29:58]} {[%emt 00:00:27]} 44. Rxd3
{[%clk 00:32:31]} {[%emt 00:00:12]} Rxf4 {[%clk 00:30:24]} {[%emt 00:00:05]} 45.
Rh3 {[%clk 00:32:57]} {[%emt 00:00:03]} Kf6 {[%clk 00:30:21]} {[%emt 00:00:33]}
46. Kg2 {[%clk 00:33:23]} {[%emt 00:00:04]} Rg4+ {[%clk 00:29:13]} {[%emt
00:01:38]} 47. Kh2 {[%clk 00:33:49]} {[%emt 00:00:04]} Ke5 {[%clk 00:21:18]}
{[%emt 00:08:25]} 48. f3 {[%clk 00:34:14]} {[%emt 00:00:04]} Ra4 {[%clk
00:19:42]} {[%emt 00:02:06]} 49. Kg3 {[%clk 00:34:39]} {[%emt 00:00:04]} Ra1
{[%clk 00:19:54]} {[%emt 00:00:18]} 50. Rh2 {[%clk 00:35:04]} {[%emt 00:00:05]}
Rg1+ {[%clk 00:20:07]} {[%emt 00:00:17]} 51. Kf2 {[%clk 00:35:30]} {[%emt
00:00:04]} Rb1 {[%clk 00:20:26]} {[%emt 00:00:12]} 52. Kg3 {[%clk 00:35:57]}
{[%emt 00:00:04]} Rg1+ {[%clk 00:20:47]} {[%emt 00:00:08]} 1/2-1/2